fUST/lending_fUST_20240319
["ID","MTS","AMOUNT","RATE_DAILY","PERIOD"]
[319542043,1710838240930,-271.12864967,0.00020821,2]
[319542044,1710838240940,-716.48,0.00020821,2]
[319542045,1710838240955,-716.48,0.00020821,2]
[319542046,1710838240964,-716.48,0.00020821,2]
[319542047,1710838240973,-716.48,0.00020821,2]
[319542048,1710838240984,-716.48,0.00020821,2]
[319542049,1710838240994,-716.48,0.00020821,2]
[319542050,1710838241003,-216.02149552,0.00020821,2]
[319542051,1710838241013,-716.48,0.00020821,2]
[319542052,1710838241022,-716.48,0.00020821,2]
[319542053,1710838241034,-716.48,0.00020821,2]
[319542054,1710838241044,-716.48,0.00020821,2]
[319542055,1710838241056,-716.48,0.00020821,2]
[319542056,1710838241066,-716.48,0.00020821,2]
[319542057,1710838241075,-716.48,0.00020821,2]
[319542058,1710838241084,-716.48,0.00020821,2]
[319542059,1710838241095,-716.48,0.00020821,2]
[319542060,1710838241105,-716.48,0.00020821,2]
[319542061,1710838241114,-716.48,0.00020821,2]
[319542062,1710838241123,-716.48,0.00020821,2]
[319542063,1710838241133,-716.48,0.00020821,2]
[319542064,1710838241142,-716.48,0.00020821,2]
[319542065,1710838241152,-716.48,0.00020821,2]
[319542066,1710838241161,-716.61243343,0.00020821,2]
[319542067,1710838241171,-512.45743565,0.00020821,2]
[319542068,1710838241180,-500.0,0.00020821,2]
[319542069,1710838241190,-500.0,0.00020821,2]
[319542070,1710838241204,-500.0,0.00020821,2]
[319542071,1710838241213,-500.0,0.00020821,2]
[319542072,1710838241223,-500.0,0.00020821,2]
[319542073,1710838241232,-500.0,0.00020821,2]
[319542074,1710838241241,-500.0,0.00020821,2]
[319542075,1710838241251,-500.0,0.00020821,2]
[319542076,1710838241261,-388.73796067,0.00020821,2]
[319542077,1710838241270,-500.0,0.00020821,2]
[319542078,1710838241280,-500.0,0.00020821,2]
[319542079,1710838241290,-500.0,0.00020821,2]
[319542080,1710838241299,-505.57865029,0.00020821,2]
[319542081,1710838241309,-500.0,0.00020821,2]
[319542082,1710838241319,-500.70015587,0.00020821,2]
[319542083,1710838241329,-500.0,0.00020821,2]
[319542084,1710838241339,-500.0,0.00020821,2]
[319542085,1710838241349,-500.0,0.00020821,2]
[319542086,1710838241357,-500.0,0.00020821,2]
[319542087,1710838241367,-500.0,0.00020821,2]
[319542088,1710838241376,-500.0,0.00020821,2]
[319542089,1710838241386,-500.0,0.00020821,2]
[319542090,1710838241396,-500.0,0.00020821,2]
[319542091,1710838241405,-500.0,0.00020821,2]
[319542092,1710838241415,-500.0,0.00020821,2]
[319542093,1710838241425,-231.01375757,0.00020821,2]
[319542094,1710838241435,-288.33028359,0.00020821,2]
[319542095,1710838241448,-501.74352477,0.00020821,2]
[319542096,1710838241458,-500.0,0.00020821,2]
[319542097,1710838241468,-500.0,0.00020821,2]
[319542098,1710838241477,-500.0,0.00020821,2]
[319542099,1710838241487,-500.0,0.00020821,2]
[319542100,1710838241496,-500.0,0.00020821,2]
[319542101,1710838241506,-500.0,0.00020821,2]
[319542102,1710838241516,-500.0,0.00020821,2]
[319542103,1710838241526,-500.0,0.00020821,2]
[319542104,1710838241536,-500.0,0.00020821,2]
[319542105,1710838241546,-500.0,0.00020821,2]
[319542106,1710838241556,-500.0,0.00020821,2]
[319542107,1710838241566,-500.0,0.00020821,2]
[319542108,1710838241575,-500.0,0.00020821,2]
[319542109,1710838241585,-500.0,0.00020821,2]
[319542110,1710838241594,-500.0,0.00020821,2]
[319542111,1710838241604,-500.0,0.00020821,2]
[319542113,1710838241613,-200.51905701,0.00020821,2]
[319542115,1710838241623,-500.0,0.00020821,2]
[319542117,1710838241633,-500.0,0.00020821,2]
[319542118,1710838241642,-500.0,0.00020821,2]
[319542119,1710838241651,-500.0,0.00020821,2]
[319542121,1710838241661,-500.0,0.00020821,2]
[319542123,1710838241670,-500.0,0.00020821,2]
[319542124,1710838241679,-346.00208485,0.00020821,2]
[319542126,1710838241689,-500.0,0.00020821,2]
[319542128,1710838241701,-500.0,0.00020821,2]
[319542130,1710838241711,-500.0,0.00020821,2]
[319542131,1710838241720,-500.0,0.00020821,2]
[319542132,1710838241731,-500.0,0.00020821,2]
[319542133,1710838241742,-538.32209982,0.00020821,2]
[319542135,1710838241752,-20162.06,0.00020821,2]
[319542136,1710838241762,-20162.06,0.00020821,2]
[319542137,1710838241773,-20162.06,0.00020821,2]
[319542139,1710838241783,-20162.06,0.00020821,2]
[319542141,1710838241792,-20162.06,0.00020821,2]
[319542142,1710838241802,-20162.06,0.00020821,2]
[319542143,1710838241812,-20162.06,0.00020821,2]
[319542144,1710838241822,-20162.06,0.00020821,2]
[319542145,1710838241832,-20162.06,0.00020821,2]
[319542146,1710838241842,-20162.06,0.00020821,2]
[319542147,1710838241852,-20162.06,0.00020821,2]
[319542148,1710838241862,-20162.06,0.00020821,2]
[319542149,1710838241872,-20162.06,0.00020821,2]
[319542150,1710838241882,-20162.06,0.00020821,2]
[319542151,1710838241892,-20162.06,0.00020821,2]
[319542152,1710838241901,-20162.06,0.00020821,2]
[319542153,1710838241911,-20162.06,0.00020821,2]
[319542154,1710838241922,-20162.06,0.00020821,2]
[319542155,1710838241932,-20162.06,0.00020821,2]
[319542156,1710838241941,-20162.06,0.00020821,2]
[319542157,1710838241957,-20162.06,0.00020821,2]
[319542158,1710838241966,-20162.06,0.00020821,2]
[319542159,1710838241976,-20162.06,0.00020821,2]
[319542160,1710838241989,-20162.13464314,0.00020821,2]
[319542161,1710838241998,-500.55379469,0.00020821,2]
[319542162,1710838242009,-500.0,0.00020821,2]
[319542163,1710838242018,-500.0,0.00020821,2]
[319542164,1710838242108,-513.74486215,0.00020821,2]
[319542165,1710838242118,-500.0,0.00020821,2]
[319542166,1710838242128,-505.66032614,0.00020821,2]
[319542167,1710838242138,-500.0,0.00020821,2]
[319542168,1710838242148,-500.0,0.00020821,2]
[319542169,1710838242158,-501.40024519,0.00020821,2]
[319542170,1710838242169,-3052.2,0.00020821,2]
[319542171,1710838242179,-3052.2,0.00020821,2]
[319542172,1710838242190,-3052.2,0.00020821,2]
[319542173,1710838242207,-3052.2,0.00020821,2]
[319542174,1710838242217,-3052.2,0.00020821,2]
[319542175,1710838242226,-3052.2,0.00020821,2]
[319542176,1710838242236,-500.0,0.00020821,2]
[319542177,1710838242246,-500.0,0.00020821,2]
[319542178,1710838242258,-500.0,0.00020821,2]
[319542179,1710838242268,-500.0,0.00020821,2]
[319542180,1710838242278,-500.0,0.00020821,2]
[319542181,1710838242287,-500.0,0.00020821,2]
[319542182,1710838242297,-3052.2,0.00020821,2]
[319542183,1710838242307,-3052.2,0.00020821,2]
[319542184,1710838242316,-500.0,0.00020821,2]
[319542185,1710838242326,-3052.2,0.00020821,2]
[319542186,1710838242335,-3052.2,0.00020821,2]
[319542187,1710838242345,-500.0,0.00020821,2]
[319542188,1710838242354,-3052.2,0.00020821,2]
[319542189,1710838242364,-500.0,0.00020821,2]
[319542190,1710838242373,-500.0,0.00020821,2]
[319542191,1710838242383,-3052.2,0.00020821,2]
[319542192,1710838242393,-3052.2,0.00020821,2]
[319542193,1710838242403,-500.0,0.00020821,2]
[319542194,1710838242412,-3052.2,0.00020821,2]
[319542195,1710838242422,-3052.2,0.00020821,2]
[319542196,1710838242431,-500.0,0.00020821,2]
[319542197,1710838242441,-3052.2,0.00020821,2]
[319542198,1710838242456,-500.0,0.00020821,2]
[319542199,1710838242465,-3052.2,0.00020821,2]
[319542200,1710838242474,-500.0,0.00020821,2]
[319542201,1710838242483,-3052.2,0.00020821,2]
[319542202,1710838242492,-523.12037364,0.00020821,2]
[319542203,1710838242501,-3052.2,0.00020821,2]
[319542204,1710838242510,-3052.2,0.00020821,2]
[319542205,1710838242520,-3052.2,0.00020821,2]
[319542206,1710838242529,-3052.2,0.00020821,2]
[319542207,1710838242539,-3052.2,0.00020821,2]
[319542208,1710838242549,-3052.27053403,0.00020821,2]
[319542209,1710838242558,-500.0,0.00020821,2]
[319542210,1710838242568,-502.19832843,0.00020821,2]
[319542211,1710838242577,-502.8775912,0.00020821,2]
[319542212,1710838242586,-361.12178257,0.00020821,2]
[319542213,1710838242595,-645.73,0.00020821,2]
[319542214,1710838242605,-645.73,0.00020821,2]
[319542215,1710838242614,-500.0,0.00020821,2]
[319542216,1710838242624,-645.73,0.00020821,2]
[319542217,1710838242633,-500.0,0.00020821,2]
[319542218,1710838242643,-645.73,0.00020821,2]
[319542219,1710838242653,-293.6184115,0.00020821,2]
[319542220,1710838242663,-645.73,0.00020821,2]
[319542221,1710838242673,-645.73,0.00020821,2]
[319542222,1710838242682,-645.73,0.00020821,2]
[319542223,1710838242691,-645.73,0.00020821,2]
[319542224,1710838242705,-645.73,0.00020821,2]
[319542225,1710838242715,-645.73,0.00020821,2]
[319542226,1710838242724,-645.73,0.00020821,2]
[319542227,1710838242734,-645.73,0.00020821,2]
[319542228,1710838242743,-645.73,0.00020821,2]
[319542229,1710838242753,-645.73,0.00020821,2]
[319542230,1710838242763,-645.73,0.00020821,2]
[319542231,1710838242772,-645.73,0.00020821,2]
[319542233,1710838242782,-645.73,0.00020821,2]
[319542234,1710838242791,-645.73,0.00020821,2]
[319542235,1710838242801,-645.73,0.00020821,2]
[319542236,1710838242810,-645.73,0.00020821,2]
[319542237,1710838242819,-645.73,0.00020821,2]
[319542238,1710838242828,-645.73,0.00020821,2]
[319542239,1710838242837,-645.73,0.00020821,2]
[319542240,1710838242846,-645.91705713,0.00020821,2]
[319542241,1710838242855,-500.0,0.00020821,2]
[319542242,1710838242865,-500.0,0.00020821,2]
[319542244,1710838242874,-500.0,0.00020821,2]
[319542246,1710838242884,-335.01815687,0.00020821,2]
[319542247,1710838242894,-500.0,0.00020821,2]
[319542248,1710838242903,-456.01930655,0.00020821,2]
[319542249,1710838242912,-500.0,0.00020821,2]
[319542250,1710838242921,-500.0,0.00020821,2]
[319542251,1710838242930,-500.0,0.00020821,2]
[319542252,1710838242940,-500.0,0.00020821,2]
[319542253,1710838242956,-500.0,0.00020821,2]
[319542255,1710838242965,-500.0,0.00020821,2]
[319542257,1710838242974,-500.0,0.00020821,2]
[319542259,1710838242988,-500.0,0.00020821,2]
[319542260,1710838242997,-500.0,0.00020821,2]
[319542262,1710838243007,-500.0,0.00020821,2]
[319542264,1710838243016,-500.0,0.00020821,2]
[319542268,1710838243027,-500.0,0.00020821,2]
[319542271,1710838243037,-500.0,0.00020821,2]
[319542272,1710838243048,-500.0,0.00020821,2]
[319542274,1710838243057,-500.0,0.00020821,2]
[319542276,1710838243067,-500.0,0.00020821,2]
[319542278,1710838243078,-500.0,0.00020821,2]
[319542280,1710838243087,-226.86974236,0.00020821,2]
[319542282,1710838243097,-500.0,0.00020821,2]
[319542285,1710838243107,-500.0,0.00020821,2]
[319542286,1710838243116,-554.92,0.00020821,2]
[319542288,1710838243125,-500.0,0.00020821,2]
[319542290,1710838243134,-501.48103963,0.00020821,2]
[319542292,1710838243144,-500.0,0.00020821,2]
[319542294,1710838243153,-342.74152748,0.00020821,2]
[319542295,1710838243162,-500.0,0.00020821,2]
[319542297,1710838243172,-443.36256858,0.00020821,2]
[319542299,1710838243180,-3902.32,0.00020821,2]
[319542300,1710838243189,-3902.32,0.00020821,2]
[319542302,1710838243203,-3902.32,0.00020821,2]
[319542303,1710838243212,-3902.32,0.00020821,2]
[319542304,1710838243222,-3902.32,0.00020821,2]
[319542305,1710838243233,-3902.32,0.00020821,2]
[319542306,1710838243245,-3902.32,0.00020821,2]
[319542308,1710838243256,-3902.32,0.00020821,2]
[319542309,1710838243269,-3902.32,0.00020821,2]
[319542310,1710838243280,-3902.32,0.00020821,2]
[319542312,1710838243291,-3902.32,0.00020821,2]
[319542313,1710838243303,-3902.32,0.00020821,2]
[319542314,1710838243314,-3902.32,0.00020821,2]
[319542315,1710838243324,-3902.32,0.00020821,2]
[319542317,1710838243334,-3902.32,0.00020821,2]
[319542319,1710838243344,-3902.32,0.00020821,2]
[319542321,1710838243355,-3902.32,0.00020821,2]
[319542323,1710838243366,-3902.32,0.00020821,2]
[319542325,1710838243376,-3902.32,0.00020821,2]
[319542326,1710838243387,-3902.32,0.00020821,2]
[319542328,1710838243398,-3902.32,0.00020821,2]
[319542330,1710838243409,-3902.32,0.00020821,2]
[319542332,1710838243420,-3902.32,0.00020821,2]
[319542334,1710838243432,-3902.50516128,0.00020821,2]
[319542336,1710838243443,-630.14510788,0.00020837,2]
[319542338,1710838243458,-2933.75031553,0.00020999,4]
[319542339,1710838243469,-9633.88818837,0.00020999,4]
[319542341,1710838243479,-756.46540392,0.00021,2]
[319542343,1710838243490,-165.67897348,0.0002141,2]
[319542345,1710838243501,-2000.0,0.000215,30]
[319542347,1710838243512,-2000.0,0.0002151,30]
[319542348,1710838243522,-2000.0,0.0002152,30]
[319542350,1710838243531,-3692.185435,0.0002153,30]
[319542352,1710838243541,-411.10498337,0.000216,2]
[319542353,1710838243551,-2307.96041397,0.00021645,2]
[319542354,1710838243562,-155.10021396,0.00021666,2]
[319542355,1710838243573,-3502.42389413,0.00021666,2]
[319542356,1710838243584,-280.83400455,0.00021666,2]
[319542357,1710838243594,-596.82810056,0.00021666,2]
[319542358,1710838243604,-155.20754076,0.00021666,2]
[319542359,1710838243615,-191.74719797,0.00021666,2]
[319542360,1710838243625,-737.89150536,0.00021666,2]
[319542361,1710838243636,-250.0465759,0.00021667,2]
[319542362,1710838243646,-7969.28302538,0.00021667,2]
[319542363,1710838243656,-10464.64848,0.00021668,2]
[319542364,1710838243668,-200.0,0.00021737,2]
[319542365,1710838243678,-1040629.27486103,0.00021744,60]
[319542367,1710838243689,-330232.04826222,0.00021744,60]
[319542369,1710838243703,-1672831.26985854,0.00021744,60]
[319542371,1710838243714,-75048.05060364,0.00021744,2]
[319542373,1710838243725,-122716.69509952,0.00021744,2]
[319542375,1710838243736,-775.26012777,0.00021744,2]
[319542377,1710838243746,-3794.23975636,0.00021744,30]
[319542379,1710838243757,-1181.58799272,0.00021744,14]
[319542381,1710838243767,-2722735.69428472,0.00021744,60]
[319542382,1710838243822,-54577.71028231,0.00021744,60]
[319542383,1710838243836,-85494.26080123,0.00021744,60]
[319542384,1710838243848,-328.0,0.00021744,60]
[319542385,1710838243902,-236.48109331,0.00019999,2]
[319542386,1710838243912,-1406.01890669,0.00021744,60]
[319542471,1710838246439,-924.93497193,0.000199,2]
[319542474,1710838246455,-814.47542875,0.00019999,2]
[319542477,1710838246468,-1299.83668109,0.00020836,2]
[319542481,1710838246480,-1032.39402525,0.00021744,60]
[319542483,1710838246494,-841.1231325,0.00021744,60]
[319542485,1710838246507,-635.5,0.00021744,60]
[319542553,1710838290941,200.0,0.00020684,120]
[319542555,1710838299389,221.63874461,0.000187,2]
[319542557,1710838316699,-744.0,0.00020094,2]
[319542558,1710838324312,70.91337354,0.000187,2]
[319542559,1710838324335,10069.32254278,0.000187,2]
[319542561,1710838351164,200.0,0.00022389,120]
[319542563,1710838410890,200.0,0.0002309,120]
[319542566,1710838472069,400.0,0.00012,7]
[319542567,1710838532224,687.65469491,0.00012,2]
[319542568,1710838539958,5166.41395051,0.0001188,2]
[319542569,1710838542570,312.84060591,0.00012,2]
[319542570,1710838548219,686.89783599,0.00012,2]
[319542571,1710838553832,3025.60882134,0.0001188,2]
[319542572,1710838556440,15969.06943157,0.00012,2]
[319542573,1710838556566,312.84060591,0.00012,2]
[319542574,1710838564456,19039.20049505,0.00012,2]
[319542575,1710838568225,687.45797196,0.00012,2]
[319542576,1710838569212,155.41040987,0.00012,2]
[319542577,1710838572480,15969.06943157,0.00012,2]
[319542578,1710838572583,312.84060591,0.00012,2]
[319542579,1710838582456,19039.20049505,0.00012,2]
[319542580,1710838590234,687.45797196,0.00012,2]
[319542581,1710838590436,15969.06943157,0.00012,2]
[319542582,1710838592570,312.84060591,0.00012,2]
[319542583,1710838603195,155.12720431,0.00012,2]
[319542584,1710838606589,2078.98156584,0.00012,2]
[319542585,1710838606764,19039.20049505,0.00012,2]
[319542586,1710838608226,685.22239928,0.00012,2]
[319542587,1710838608564,312.84060591,0.00012,2]
[319542588,1710838620436,19039.20049505,0.00012,2]
[319542589,1710838627211,155.58103543,0.00012,2]
[319542590,1710838628605,312.84060591,0.00012,2]
[319542591,1710838644449,14062.94789752,0.00012,2]
[319542592,1710838644569,311.51162349,0.00012,2]
[319542613,1710839195142,-814.47542875,0.0001795,2]
[319542614,1710839195163,-1299.83668109,0.00017951,2]
[319542615,1710839195184,-809.36349909,0.00017951,2]
[319542616,1710839232101,-154.92253873,0.0001795,2]
[319542617,1710839232122,-2745.21357052,0.00017967,2]
[319542618,1710839232151,-2000.7591014,0.00017968,2]
[319542619,1710839232172,-4919.02430682,0.00018,4]
[319542620,1710839232193,-240.294201,0.00018124,2]
[319542621,1710839232212,-282.06409348,0.00018998,2]
[319542622,1710839232233,-1954.1833345,0.00018998,2]
[319542623,1710839232258,-1299.83668109,0.00018998,2]
[319542624,1710839232280,-814.47542875,0.00018998,2]
[319542625,1710839232301,-154.9690062,0.00018998,2]
[319542626,1710839232323,-191.80476881,0.00018998,2]
[319542627,1710839232346,-429.82985668,0.00018998,2]
[319542628,1710839232366,-154.95351395,0.00018999,2]
[319542629,1710839232391,-154.95351395,0.00018999,2]
[319542630,1710839232414,-62789.31004037,0.00019,2]
[319542701,1710839432743,-337.12691269,0.00018894,2]
[319542703,1710839432753,-2745.21357052,0.00018895,2]
[319542705,1710839432763,-1299.83668109,0.00018896,2]
[319542707,1710839432773,-286.57736603,0.000189,2]
[319542709,1710839432783,-300.0,0.00018997,2]
[319542710,1710839432797,-331.70941467,0.00018998,2]
[319542711,1710839432807,-1608.66817927,0.00018998,2]
[319542712,1710839432818,-212.33431703,0.00018998,2]
[319542713,1710839432827,-2601.51095234,0.00018998,2]
[319542714,1710839432837,-534.20265257,0.00018998,2]
[319542715,1710839432848,-156.18476097,0.00018998,2]
[319542716,1710839432859,-154.9690062,0.00018998,2]
[319542717,1710839432870,-160.08670291,0.00018998,2]
[319542718,1710839432881,-245.70012276,0.00018998,2]
[319542719,1710839432893,-2912.98345691,0.00018999,2]
[319542720,1710839432905,-24231.5477267,0.00019,2]
[319542721,1710839432917,-4134.86518,0.00019,2]
[319542722,1710839432930,-236.48109331,0.000195,2]
[319542723,1710839432942,-154.93802479,0.0002,2]
[319542725,1710839432954,-1453.63680058,0.0002,2]
[319542727,1710839432966,-683.01846586,0.0002,2]
[319542729,1710839432978,-275.2653267,0.0002,2]
[319542731,1710839432990,-2988.721065,0.00020452,2]
[319542733,1710839433001,-211.473941,0.00020764,2]
[319542735,1710839433012,-176.62279,0.00020764,2]
[319542736,1710839433022,-500.0,0.00020821,2]
[319542738,1710839433033,-500.0,0.00020821,2]
[319542740,1710839433048,-500.0,0.00020821,2]
[319542741,1710839433060,-500.0,0.00020821,2]
[319542743,1710839433071,-500.0,0.00020821,2]
[319542744,1710839433082,-500.0,0.00020821,2]
[319542746,1710839433092,-500.0,0.00020821,2]
[319542748,1710839433103,-500.0,0.00020821,2]
[319542749,1710839433114,-500.0,0.00020821,2]
[319542751,1710839433124,-500.0,0.00020821,2]
[319542753,1710839433134,-209.97294759,0.00020821,2]
[319542755,1710839433144,-500.0,0.00020821,2]
[319542756,1710839433156,-500.0,0.00020821,2]
[319542758,1710839433167,-500.0,0.00020821,2]
[319542760,1710839433176,-500.0,0.00020821,2]
[319542762,1710839433186,-500.0,0.00020821,2]
[319542763,1710839433195,-500.0,0.00020821,2]
[319542765,1710839433205,-215.07652844,0.00020821,2]
[319542766,1710839433214,-498.38426155,0.00020821,2]
[319542846,1710839438620,-1299.83668109,0.00018893,2]
[319542847,1710839438631,-1.61573845,0.00020821,2]
[319542848,1710839438642,-500.0,0.00020821,2]
[319542850,1710839438652,-500.0,0.00020821,2]
[319542852,1710839438663,-328.20967786,0.00020821,2]
[319542854,1710839438674,-500.0,0.00020821,2]
[319542855,1710839438684,-591.65217931,0.00020821,2]
[319542856,1710839438696,-500.0,0.00020821,2]
[319542857,1710839438707,-500.0,0.00020821,2]
[319542858,1710839438719,-500.0,0.00020821,2]
[319542859,1710839438730,-500.0,0.00020821,2]
[319542860,1710839438740,-500.0,0.00020821,2]
[319542861,1710839438751,-500.0,0.00020821,2]
[319542862,1710839438763,-500.0,0.00020821,2]
[319542863,1710839438774,-500.0,0.00020821,2]
[319542864,1710839438784,-500.0,0.00020821,2]
[319542865,1710839438796,-500.0,0.00020821,2]
[319542866,1710839438808,-500.0,0.00020821,2]
[319542867,1710839438818,-500.0,0.00020821,2]
[319542868,1710839438828,-500.0,0.00020821,2]
[319542869,1710839438838,-500.0,0.00020821,2]
[319542870,1710839438847,-500.0,0.00020821,2]
[319542871,1710839438857,-500.0,0.00020821,2]
[319542872,1710839438866,-425.27195468,0.00020821,2]
[319542873,1710839438877,-500.0,0.00020821,2]
[319542874,1710839438886,-500.0,0.00020821,2]
[319542875,1710839438896,-500.0,0.00020821,2]
[319542876,1710839438906,-500.0,0.00020821,2]
[319542877,1710839438917,-500.0,0.00020821,2]
[319542878,1710839438926,-420.04709894,0.00020821,2]
[319542879,1710839438936,-500.0,0.00020821,2]
[319542880,1710839438945,-1624.1,0.00020821,2]
[319542881,1710839438954,-1624.1,0.00020821,2]
[319542882,1710839438964,-1624.1,0.00020821,2]
[319542883,1710839438973,-1624.1,0.00020821,2]
[319542884,1710839438982,-310.81504785,0.00020821,2]
[319542885,1710839438992,-500.0,0.00020821,2]
[319542886,1710839439080,-500.0,0.00020821,2]
[319542887,1710839439090,-500.0,0.00020821,2]
[319542888,1710839439100,-500.0,0.00020821,2]
[319542889,1710839439109,-500.0,0.00020821,2]
[319542890,1710839439119,-500.0,0.00020821,2]
[319542891,1710839439130,-500.0,0.00020821,2]
[319542892,1710839439140,-500.0,0.00020821,2]
[319542893,1710839439149,-500.0,0.00020821,2]
[319542894,1710839439159,-6699.28018257,0.000209,2]
[319542895,1710839439168,-3847.08092616,0.00021,2]
[319542896,1710839439178,-211.473941,0.00021024,2]
[319542897,1710839439187,-176.62279,0.00021024,2]
[319542898,1710839439196,-211.473941,0.00021283,2]
[319542899,1710839439206,-176.62279,0.00021283,2]
[319542900,1710839439216,-177.40083632,0.00021307,2]
[319542901,1710839439226,-154.9690062,0.0002141,2]
[319542902,1710839439235,-850.53497193,0.00021496,2]
[319542903,1710839439244,-161.10265217,0.00021496,2]
[319542904,1710839439253,-150.0,0.000215,30]
[319542905,1710839439262,-211.473941,0.00021543,2]
[319542906,1710839439271,-176.62279,0.00021543,2]
[319542907,1710839439281,-500.0,0.00021596,2]
[319542908,1710839439290,-500.0,0.00021596,2]
[319542909,1710839439303,-500.0,0.00021596,2]
[319542910,1710839439314,-500.0,0.00021596,2]
[319542911,1710839439323,-500.0,0.00021596,2]
[319542912,1710839439335,-500.0,0.00021596,2]
[319542913,1710839439344,-500.0,0.00021596,2]
[319542914,1710839439354,-500.0,0.00021596,2]
[319542915,1710839439365,-500.0,0.00021596,2]
[319542916,1710839439376,-500.0,0.00021596,2]
[319542917,1710839439387,-500.0,0.00021596,2]
[319542918,1710839439398,-500.0,0.00021596,2]
[319542919,1710839439409,-500.0,0.00021596,2]
[319542920,1710839439419,-500.0,0.00021596,2]
[319542921,1710839439430,-500.0,0.00021596,2]
[319542922,1710839439440,-373.99332535,0.00021596,2]
[319542923,1710839439451,-112047.49952812,0.00021596,60]
[319542924,1710839439497,-2357.57536372,0.00021596,60]
[319542925,1710839439508,-126600.01147107,0.00021596,60]
[319542926,1710839439520,-308016.87041234,0.00021596,60]
[319542953,1710839440731,-180.429433,0.00018704,2]
[319542954,1710839440741,-10478.570567,0.00021596,60]
[319542955,1710839440751,-69983.28620106,0.00021596,60]
[319542956,1710839440760,-222.54393799,0.00021596,10]
[319542957,1710839440770,-284.21885959,0.00021596,2]
[319542958,1710839440781,-5434.25285661,0.00021596,30]
[319542959,1710839440790,-4055.58408567,0.00021596,2]
[319542960,1710839440804,-313.0487877,0.00021596,2]
[319542961,1710839440814,-278.95252685,0.00021596,2]
[319542962,1710839440824,-100139.35096464,0.00021596,2]
[319542963,1710839440833,-9137.76177965,0.00021596,2]
[319542964,1710839440844,-1262.96060909,0.00021596,2]
[319542965,1710839440869,-536.69948772,0.00021596,2]
[319542966,1710839440905,-500.0,0.00021595,2]
[319542967,1710839440916,-457.1393189,0.00021595,2]
[319542968,1710839440925,-7918.16538514,0.00021596,2]
[319542969,1710839440935,-28479.10302827,0.00021596,2]
[319542970,1710839440944,-9863.61643866,0.00021596,2]
[319542971,1710839440953,-2963.86595674,0.00021596,2]
[319542972,1710839440962,-1011.53005526,0.00021596,10]
[319542973,1710839440971,-150.83246699,0.00021596,2]
[319542974,1710839440981,-314.87156349,0.00021596,2]
[319542975,1710839440990,-819.29868964,0.00021596,2]
[319543120,1710839443762,-1015.2,0.0001998,10]
[319543122,1710839443774,-1620.00000001,0.0001998,10]
[319543165,1710839446819,-4071.97530354,0.0001998,10]
[319543167,1710839446833,-841.1231325,0.0001998,10]
[319543169,1710839446848,-7521.11812801,0.0001998,10]
[319543173,1710839446879,-1689.436054,0.0001998,10]
[319543175,1710839446889,-500.0,0.00020821,2]
[319543176,1710839446898,-500.0,0.00020821,2]
[319543177,1710839446908,-154.92253873,0.00021495,2]
[319543178,1710839446917,-107419.56164593,0.00021496,2]
[319543179,1710839446929,-633.8,0.00021496,2]
[319543180,1710839446940,-15805.49999999,0.00021496,2]
[319543219,1710839828134,-547.97600901,0.00017736,2]
[319543220,1710839828255,-11.18318386,0.00017736,2]
[319543221,1710839836215,-547.97600901,0.00017736,2]
[319543222,1710839836339,-11.18318386,0.00017736,2]
[319543223,1710839844536,-547.97600901,0.00017736,2]
[319543224,1710839844643,-11.18318386,0.00017736,2]